Cogmind - Beta 13 @@@ ROGUE MODE // 2024.04.20 @ 19:42:15 Player: Pitt Result: Destroyed by G-34 Mercenary with Small Laser Performance ------------- Evolutions (1) 500 Regions Visited (2) 400 Robots Destroyed (15) 75 Value Destroyed (204) 204 Prototype IDs (2) 40 Alien Tech Used (0) 0 Bonus (0) 0 TOTAL SCORE: 1219 Bonus ------- None Cogmind --------- Core Integrity 0/400 Matter 260/300 Energy 99/100 System Corruption 2% Temperature Cool (8) Movement Flying (40) Location -9/Materials Parts ------- > --- POWER (1) -------- (None) > --- PROPULSION (2) --- Flight Unit > --- UTILITY (4) ------ Signal Interpreter > --- WEAPON (2) ------- (None) > --- INVENTORY (5) ---- Medium Storage Unit Sensor Array Seismic Detector EM Pulse Gun Mining Laser Peak State ------------ > --- POWER ------------ Light Ion Engine > --- PROPULSION ------- Aluminum Leg Aluminum Leg > --- UTILITY ---------- Cooling System Small Storage Unit Signal Interpreter Improved Terrain Scanner > --- WEAPON ----------- Medium Laser Small Laser > --- INVENTORY -------- Flight Unit Flight Unit Flight Unit Flight Unit Sensor Array Seismic Detector Mining Laser [Rating: 12] Favorites ----------- Power Light Ion Engine Engine Light Ion Engine Propulsion Aluminum Leg Treads Improved Treads Leg Aluminum Leg Flight Unit Flight Unit Utility Small Storage Unit Device Improved Terrain Scanner Storage Small Storage Unit Processor Signal Interpreter Weapon Small Laser Energy Gun Small Laser Ballistic Gun Assault Rifle Special Weapon Mining Laser Build | -11 -10 -9 ------- Run | Yrd Mat Mat Slots Evolved 2 | . . 2 Power . | . . . Propulsion . | . . . Utility 2 | . . 2 Weapon . | . . . Parts Attached 20 | 7 1 12 Power 1 | 1 . . Engine 1 | 1 . . Core . | . . . Reactor . | . . . Propulsion 9 | 2 . 7 Treads 2 | . . 2 Leg 2 | 2 . . Wheel . | . . . Hover . | . . . Flight 5 | . . 5 Utility 5 | 2 . 3 Device 3 | 1 . 2 Storage 1 | 1 . . Processor 1 | . . 1 Hackware . | . . . Protection . | . . . Artifact . | . . . Weapon 5 | 2 1 2 Energy Gun 3 | 1 1 1 Energy Cannon . | . . . Ballistic Gun 1 | 1 . . Ballistic Cannon . | . . . Launcher . | . . . Special Weapon 1 | . . 1 Impact Weapon . | . . . Slashing Weapon . | . . . Piercing Weapon . | . . . Special Melee Weapon . | . . . Unidentified Prototypes . | . . . Parts Lost 11 | . . 11 Power 1 | . . 1 Propulsion 6 | . . 6 Utility 2 | . . 2 Weapon 2 | . . 2 Highest Loss Streak 7 | . . 7 To Critical Strikes . | . . . Average Slot Usage (%) 89 | . 100 68 Engine 11 | . 14 5 Leg 22 | . 28 11 Device 13 | . 14 12 Storage 12 | . 14 10 Processor 3 | . . 11 Energy Gun 19 | . 22 11 Ballistic Gun 3 | . 5 . Naked Turns . | . . . Heaviest Build 14 | 12 12 14 Greatest Support 46 | 20 20 46 Greatest Overweight (x) 3 | 3 . 2 Average Overweight (x) . | . . . Largest Inventory Capacity 8 | 8 8 8 Average Capacity 7 | 7 8 7 Most Carried 8 | 6 8 7 Average Carried 5 | 1 7 6 Final Capacity 8 | 8 8 5 Final Carried 8 | 6 8 5 Class Distribution -------------------- 91% | Mutant 8% | Skirmisher Dominant Class ---------------- Mutant | -10/Materials Mutant | -9/Materials Resources | -11 -10 -9 ----------- Run | Yrd Mat Mat Matter Collected 371 | 294 64 13 Remotely . | . . . Salvage Created 360 | 161 199 . Parts 36 | 21 15 . Haulers Intercepted . | . . . Recyclers Shooed 1 | . 1 . Parts Field Recycled . | . . . Retrieved Matter . | . . . Parts Self-Destructed . | . . . Prevented . | . . . Kills | -11 -10 -9 ------- Run | Yrd Mat Mat Combat Hostiles Destroyed 6 | . 6 . Guns 6 | . 6 . Classes Destroyed 4 | 1 3 . Tunneler 8 | 8 . . Watcher 1 | . 1 . Swarmer 3 | . 3 . Grunt 3 | . 3 . Best Kill Streak 4 | 4 3 . Combat Bots Only 3 | . 3 . Max Kills in Single Turn 1 | 1 1 . Gunslinging . | . . . Exploded . | . . . Melee . | . . . Uniques/NPCs Destroyed . | . . . Combat | -11 -10 -9 -------- Run | Yrd Mat Mat Hostile Shots Fired 172 | . 25 147 Missed 63 | . 7 56 Damage Taken 1364 | . 180 1184 Core 434 | . 30 404 Absorbed by Shields . | . . . Core Remaining (%) 94 | 100 88 . Volleys Fired 45 | 12 22 11 Largest 2 | 2 2 2 Hottest 100 | 60 90 100 Shots Fired 86 | 24 43 19 Gun 85 | 24 43 18 Cannon . | . . . Launcher . | . . . Special 1 | . . 1 Kinetic 26 | 12 14 . Thermal 60 | 12 29 19 Explosive . | . . . Electromagnetic . | . . . Robot Hit Streak 7 | 7 4 4 Robot Miss Streak 5 | 2 5 3 Penetration Max . | . . . Secondary Targets 1 | . 1 . Max Gunslinging Chain 1 | . 1 . Shots Hit Robots 42 | 14 18 10 Core Hits 24 | 8 13 3 Critical Kills . | . . . Critical Parts Destroyed . | . . . Critical Strikes 1 | . 1 . Burn 1 | . 1 . Melee Attacks . | . . . Impact . | . . . Slashing . | . . . Piercing . | . . . Sneak Attacks . | . . . Combat Hostiles . | . . . Follow-up Attacks . | . . . Damage Inflicted 595 | 190 261 144 Guns 576 | 190 261 125 Cannons . | . . . Explosions . | . . . Melee . | . . . Ramming 19 | . . 19 Kinetic 167 | 92 75 . Thermal 409 | 98 186 125 Explosive . | . . . Electromagnetic . | . . . Impact . | . . . Slashing . | . . . Piercing . | . . . Highest Corruption 2 | . . 2 Average Corruption 2 | . . 2 Corruption Purged . | . . . Corruption Blocked . | . . . Effects 2 | . . 2 Message Errors 1 | . . 1 Parts Rejected 1 | . . 1 Overload Shots . | . . . Overflow Damage . | . . . Projectiles . | . . . Explosions . | . . . Melee . | . . . Knockbacks 1 | . . 1 Impact 1 | . . 1 Kinetic . | . . . Secondary . | . . . Self-Inflicted Damage 8 | . . 8 Shots . | . . . Rammed 7 | . . 7 Targets Rammed 8 | . . 8 Kicked 1 | . . 1 Crushed . | . . . Highest Temperature 234 | . 234 225 Average Temperature 92 | . 103 81 Received Heat Transfer 657 | . 66 591 Siege Activations . | . . . Robots Corrupted . | . . . Combat Hostiles . | . . . Parts Fried . | . . . Impact Corruptions . | . . . Robots Melted . | . . . Combat Hostiles . | . . . Parts Melted 2 | . 2 . Heat Transferred 1106 | 225 546 335 Parts Sabotaged . | . . . Parts Stolen . | . . . Parts Stripped . | . . . Power Chain Reactions . | . . . Alert | -11 -10 -9 ------- Run | Yrd Mat Mat Peak Influence 167 | 40 167 40 Initial 26 | . 26 20 Average 56 | 21 94 17 Maximum Alert Level . | . . . Low Security (%) 100 | 100 100 100 Level 1 . | . . . Level 2 . | . . . Level 3 . | . . . Level 4 . | . . . Level 5 . | . . . High Security . | . . . Max Security . | . . . Squads Dispatched 4 | . 1 3 Investigation 2 | . 1 1 Extermination . | . . . Reinforcement 2 | . . 2 Assault . | . . . Garrison . | . . . Intercept . | . . . Searches Triggered . | . . . Construction Impeded . | . . . Haulers Reinforced . | . . . Active Scanning Responses . | . . . Cargo Convoy Interrupts . | . . . Stealth | -11 -10 -9 --------- Run | Yrd Mat Mat Distress Signals 3 | . 1 2 Communications Jammed . | . . . Distress Signals . | . . . Times Spotted 26 | . 10 16 Peak Tracking Total 15 | . 3 15 Tactical Retreats 2 | . . 2 Traps | -11 -10 -9 ------- Run | Yrd Mat Mat Traps Triggered 1 | . 1 . Indirectly . | . . . Trap Hack Attempts . | . . . Triggered . | . . . Disarmed . | . . . Reprogrammed . | . . . Reused . | . . . Traps Extracted . | . . . Installed . | . . . Triggered . | . . . Machines | -11 -10 -9 ---------- Run | Yrd Mat Mat Machines Disabled . | . . . Max in Single Turn . | . . . Machines Repaired . | . . . Machines Dismantled . | . . . Machines Sabotaged . | . . . Overloaded Fab Kills . | . . . Hacking | -11 -10 -9 --------- Run | Yrd Mat Mat Machines Accessed 7 | . 6 1 Terminals 6 | . 5 1 Fabricators . | . . . Repair Stations . | . . . Recycling Units 1 | . 1 . Scanalyzers . | . . . Garrison Access . | . . . Total Hacks 22 | . 19 3 Successful 13 | . 11 2 Failed 9 | . 8 1 Catastrophic . | . . . Database Lockouts . | . . . Manual 17 | . 15 2 Terminals 17 | . 14 3 Fabricators . | . . . Repair Stations . | . . . Recycling Units 5 | . 5 . Scanalyzers . | . . . Garrison Access . | . . . Terminal Hacks 5 | . 4 1 Prototype ID Bank 1 | . 1 . Terminal Index 1 | . 1 . Locate Traps 1 | . . 1 Transport Status 1 | . 1 . Zone Layout 1 | . 1 . Fabricator Hacks . | . . . Repair Station Hacks . | . . . Recycling Unit Hacks . | . . . Scanalyzer . | . . . Garrison Access Hacks . | . . . Unauthorized Hacks 8 | . 7 1 Terminals 5 | . 4 1 Track 1 | . 1 . Assimilate 1 | . . 1 Botnet 2 | . 2 . Operators 1 | . 1 . Fabricators . | . . . Repair Stations . | . . . Recycling Units 3 | . 3 . Monitor 1 | . 1 . Reject 1 | . 1 . Mask 1 | . 1 . Scanalyzers . | . . . Garrison Access . | . . . Data Cores Recovered . | . . . Used . | . . . Hacking Detections 6 | . 5 1 Full Trace Events 1 | . . 1 Feedback Events . | . . . Feedback Blocked . | . . . Robot Schematics Acquired . | . . . Robots Built . | . . . Authchips . | . . . Time . | . . . Total Robot Build Rating . | . . . Part Schematics Acquired . | . . . Parts Built . | . . . Authchips . | . . . Time . | . . . Total Part Build Rating . | . . . Parts Repaired . | . . . Time . | . . . Parts Recycled . | . . . Recycled Matter . | . . . Retrieved Matter . | . . . Retrieved Components . | . . . Parts Scanalyzed . | . . . Part Schematics Acquired . | . . . Parts Damaged . | . . . Bothacking | -11 -10 -9 ------------ Run | Yrd Mat Mat Used RIF Installer . | . . . Robots Hacked . | . . . Non-combat . | . . . Combat . | . . . Robot Hacks Applied . | . . . Relay Couplers Released . | . . . Fabnet Peak Effective % . | . . . Robots Rewired . | . . . Allies Hacked . | . . . Hacks Repelled . | . . . Allies | -11 -10 -9 -------- Run | Yrd Mat Mat Total Allies . | . . . Largest Group . | . . . Highest-Rated Group . | . . . Highest-Rated Ally . | . . . Total Orders . | . . . Ally Attacks . | . . . Total Damage . | . . . Kills . | . . . Allies Corrupted . | . . . Allies Melted . | . . . Intel | -11 -10 -9 ------- Run | Yrd Mat Mat Robot Analysis Total . | . . . Derelict Logs Recovered . | . . . Drone Launches . | . . . Drone Recoveries . | . . . Exploration | -11 -10 -9 ------------- Run | Yrd Mat Mat Turns Passed 974 | 264 483 227 Spaces Moved 562 | 104 304 154 Core 44 | 19 . 25 Treads 16 | . . 16 Legs 432 | 85 304 43 Wheels . | . . . Hover . | . . . Flight 70 | . . 70 Fastest Speed 37 | 50 120 37 Average Speed 109 | 112 120 87 Slowest Speed 200 | 200 120 160 Overloaded Moves . | . . . Propulsion Burnouts . | . . . Robots Hopped 2 | . . 2 Cave-ins Triggered . | . . . Exploration Rate (%) 23 | 4 45 22 Regions Visited 2 Branch Regions . Pre-discovered Areas . | . . . Known Exits Taken . | . . . Unknown Exits Taken 2 | 1 1 . Scrap Searched . | . . . Spaces Dug 1 | . . 1 Terrain Destroyed 1 | . . 1 Melee . | . . . Projectile 1 | . . 1 AOE . | . . . Terrain Rammed . | . . . Walls Destroyed . | . . . Machines Disabled . | . . . Actions | -11 -10 -9 --------- Run | Yrd Mat Mat Total 824 | 223 380 221 Wait 171 | 95 44 32 Move 556 | 103 303 150 Hop 2 | . . 2 Pick Up 15 | 6 6 3 Fast Attach 9 | 7 . 2 Attach 7 | . . 7 Detach 2 | . . 2 Swap 4 | . 1 3 Drop 5 | . 4 1 Fire 45 | 12 22 11 Melee . | . . . Ram 5 | . . 5 Kick 1 | . . 1 Crush 2 | . . 2 Escape Stasis . | . . . Rewire . | . . . Trap . | . . . Miscellaneous . | . . . Route ------- -11/Scrapyard -10/Materials -9/Materials History --------- Turn | Location | Event 3 | -11/Scrapyard | Discovered new exit (range 15) 265 | -11/Scrapyard | Entered Materials 304 | -10/Materials | Build established: Mutant 733 | -10/Materials | Discovered new exit (range 8) 748 | -10/Materials | Entered another Materials area 748 | -9/Materials | Evolved 2 slots: Utility x2 884 | -9/Materials | Core integrity fell below 50% 905 | -9/Materials | Lost 7 parts (1p2n2u2w) 939 | -9/Materials | Core integrity fell below 20% 951 | -9/Materials | Lost 3 parts (3n) 975 | -9/Materials | Destroyed by G-34 Mercenary with Small Laser Last Messages --------------- 00916_ Flight Unit destroyed. 00927_ Acquired Imp. Treads. 00934_ Slammed into Y-45 Defender. 00938_ K-01 Serf destroyed. 00941_ O-16 Technician: "IFF HANDSHAKE FAILED. SECURING TERMINAL." 00946_ R-06 Scavenger collects Wheel. 00947_ ALERT: Hostiles spotted, dispatching reinforcements to Terminal M010. 00949_ K-01 Serf collects debris. 00954_ T-07 Excavator is excavating. 00957_ K-01 Serf cleans the Fusion Modulator. 00958_ K-01 Serf collects debris. 00958_ Imp. Treads destroyed. 00959_ System corrupted: Imp. Treads rejected. 00960_ Critical hit (Burn: +37). 00962_ K-01 Serf collects debris. 00963_ M-13 Machinist repairs G-34 Mercenary. 00968_ Acquired Med. Storage Unit. 00969_ Dropped Sml. Storage Unit. 00972_ Acquired EM Pulse Gun. 00974_ G-34 Mercenary destroyed. Map ----- +----------------------------------------------------+ | | | | | | | | | | | | | | | | | | | | | ?????????????????????????????????????????????? | | ?????????????????????????????????????????????? | | ?????????????????????????????????????????????? | | ?????????????????????????????????????????????? | | ?????????????????????????????????????????????? | | ?????????????????????????????????????????????? | | ?????????????????########????????????????????? | | ?????????????????# !#????????????????????? | | ?????????????????# #????????????????????? | | ?????????????????# #????????####????????? | | ?????????????????# #???????? ????????? | | ???????????????#?# ! #??#????? " #????????? | | ???????????????# # #??# """ T #????????? | | ???????????????# ####/###### """ " #????????? | | ????????# ?????# [%g + #????????? | | ????????# #### g@###### """ #????????? | | ????????# gg#????# """ #????????? | | ????????# g#????? """ #????????? | | ????????# #??????? ??????????? | | ????????# ##########+########### # | | ????????# """ g = | | ????????# """ | | ??????? """ r | | ???????? ?? ########## ############## | | ????????? ?????????# #????????????? | | ????????? """ ?????????# #?????#######? | | ????????? """ ?????????# ####### #? | | ????????? """ ?????????# #? | | ????????? ???? ?????????# % #? | | ????????????? ??????????# #? | | ??????????????"" ??????????#######+### #? | | ???????????????" ??????????????# ## ##? | | ???????????????? ??????????????#"S # #?? | | ???????????????????????????????#""" ## #?? | | ???????????????????????????????# "" ==## ### | | ???????????????????????????????# ## | | ???????????????????????????????# ## ### | | ???????????????????????????????######### #?? | | ????????????????????????????????????#####"#### | | ????????????????????????????????????# # | +----------------------------------------------------+ Best States ------------- Heat Dissipation 50 Energy Generation 10 Energy Capacity 125 Matter Stores 300 Matter Capacity 300 Sight Range 16 Robot Scan Range 14 Terrain Scan Range 16 Terrain Scan Density 10 Evasion (%) 62 Recoil Reduction 2 Item Schematics ----------------- None Robot Schematics ------------------ None Fabricated ------------ Nothing Alien Tech Used ----------------- None Achievements -------------- None Challenges ------------ None Game ------ Seed CloakingRemoteShredder Manual? 0 Play Time 00:14:31 Cumulative 196.6 hours Start 2024.04.20 @ 19:29:47 End 2024.04.20 @ 19:42:15 Sessions 1 Manual Loads 0 Difficulty Rogue Special Mode None Game No. 299 Rogue 299 Adventurer 0 Explorer 0 Win Type - Total 0 Types 0/0/0/0/0/0/0/0/0 Lore% 48 Gallery% 58 Achievement% 40 Wizard Run 0 Options --------- Layout 0 ASCII 0 Keyboard 0 Movement Mouse Keybinds 0 Fullscreen 1 Font 12/Smallcaps Map View 83x54 Zoom Use 0% Tactical HUD 1 Map Filters NONE Filters NONE Steam 1 RUN: 4acd9e8e-353e-44fd-b27b-b5e64827e967